{"text_format":"3","workbook":"xlsx","n_sheets":7,"sheets":["Segunda","Terça-feira","Quarta-feira","Quinta-feira","Sexta-feira","Sábado","Domingo"],"not_rendered":{"defined_names":21},"read":"whole","date_system":"1900"}

{"sheet":"Segunda","index":0,"n_rows":10,"n_cols":13,"rows_kept":10,"merged":[[1,1,1,4],[1,8,1,9],[1,10,1,12],[2,1,2,4],[2,8,2,9],[2,10,2,12]]}
[]
[null,"AGENDA DE TURNOS",{"$nulls":6},"Para a semana de: ",null,"Data"]
[null,"Segunda",{"$nulls":6},"Nome do departamento: ",null,"Nome"]
[]
[null,"Funcionário","07h","08h","09h","10h","11h","12h","13h","14h","15h","Licença médica?","Total"]
[null,"Nome 1","Gerente","Gerente","Gerente","Gerente","Gerente","Gerente","Gerente","Gerente","Gerente",null,{"$f":"COUNTIF(Segunda[[#This Row],[07h]:[15h]],\"*\")","v":9}]
[null,"Nome 2",null,"Caixa","Caixa","Caixa","Caixa",{"$nulls":5},{"$f":"COUNTIF(Segunda[[#This Row],[07h]:[15h]],\"*\")","v":4}]
[null,"Nome 3",null,"Recepção","Recepção","Recepção","Recepção","Recepção","Recepção","Recepção",null,null,{"$f":"COUNTIF(Segunda[[#This Row],[07h]:[15h]],\"*\")","v":7}]
[null,"Nome 4",null,"Recepção","Recepção","Recepção","Recepção","Recepção","Recepção","Recepção",null,null,{"$f":"COUNTIF(Segunda[[#This Row],[07h]:[15h]],\"*\")","v":7}]
[null,"Nome 5",{"$nulls":9},"Licença médica",{"$f":"COUNTIF(Segunda[[#This Row],[07h]:[15h]],\"*\")","v":0}]

{"sheet":"Terça-feira","index":1,"n_rows":10,"n_cols":13,"rows_kept":10,"merged":[[1,1,1,4],[1,8,1,9],[1,10,1,12],[2,1,2,4],[2,8,2,9],[2,10,2,12]]}
[]
[null,"AGENDA DE TURNOS",{"$nulls":6},"Para a semana de: ",null,"Data"]
[null,"Terça-feira",{"$nulls":6},"Nome do departamento: ",null,"Nome"]
[]
[null,"Funcionário","07h","08h","09h","10h","11h","12h","13h","14h","15h","Licença médica?","Total"]
[null,"Nome 1","Gerente","Gerente","Gerente","Gerente","Gerente","Gerente","Gerente","Gerente","Gerente",null,{"$f":"COUNTIF(Terça_feira[[#This Row],[07h]:[15h]],\"*\")","v":9}]
[null,"Nome 2",null,"Caixa","Caixa","Caixa","Caixa",{"$nulls":5},{"$f":"COUNTIF(Terça_feira[[#This Row],[07h]:[15h]],\"*\")","v":4}]
[null,"Nome 3",null,"Recepção","Recepção","Recepção","Recepção","Recepção","Recepção","Recepção",null,null,{"$f":"COUNTIF(Terça_feira[[#This Row],[07h]:[15h]],\"*\")","v":7}]
[null,"Nome 4",null,"Recepção","Recepção","Recepção","Recepção","Recepção","Recepção","Recepção",null,null,{"$f":"COUNTIF(Terça_feira[[#This Row],[07h]:[15h]],\"*\")","v":7}]
[null,"Nome 5",{"$nulls":9},"Licença médica",{"$f":"COUNTIF(Terça_feira[[#This Row],[07h]:[15h]],\"*\")","v":0}]

{"sheet":"Quarta-feira","index":2,"n_rows":10,"n_cols":13,"rows_kept":10,"merged":[[1,1,1,4],[1,8,1,9],[1,10,1,12],[2,1,2,4],[2,8,2,9],[2,10,2,12]]}
[]
[null,"AGENDA DE TURNOS",{"$nulls":6},"Para a semana de: ",null,"Data"]
[null,"Quarta-feira",{"$nulls":6},"Nome do departamento: ",null,"Nome"]
[]
[null,"Funcionário","07h","08h","09h","10h","11h","12h","13h","14h","15h","Licença médica?","Total"]
[null,"Nome 1","Gerente","Gerente","Gerente","Gerente","Gerente","Gerente","Gerente","Gerente","Gerente",null,{"$f":"COUNTIF(Quarta_feira[[#This Row],[07h]:[15h]],\"*\")","v":9}]
[null,"Nome 2",null,"Caixa","Caixa","Caixa","Caixa",{"$nulls":5},{"$f":"COUNTIF(Quarta_feira[[#This Row],[07h]:[15h]],\"*\")","v":4}]
[null,"Nome 3",null,"Recepção","Recepção","Recepção","Recepção","Recepção","Recepção","Recepção",null,null,{"$f":"COUNTIF(Quarta_feira[[#This Row],[07h]:[15h]],\"*\")","v":7}]
[null,"Nome 4",null,"Recepção","Recepção","Recepção","Recepção","Recepção","Recepção","Recepção",null,null,{"$f":"COUNTIF(Quarta_feira[[#This Row],[07h]:[15h]],\"*\")","v":7}]
[null,"Nome 5",{"$nulls":9},"Licença médica",{"$f":"COUNTIF(Quarta_feira[[#This Row],[07h]:[15h]],\"*\")","v":0}]

{"sheet":"Quinta-feira","index":3,"n_rows":10,"n_cols":13,"rows_kept":10,"merged":[[1,1,1,4],[1,8,1,9],[1,10,1,12],[2,1,2,4],[2,8,2,9],[2,10,2,12]]}
[]
[null,"AGENDA DE TURNOS",{"$nulls":6},"Para a semana de: ",null,"Data"]
[null,"Quinta-feira",{"$nulls":6},"Nome do departamento: ",null,"Nome"]
[]
[null,"Funcionário","07h","08h","09h","10h","11h","12h","13h","14h","15h","Licença médica?","Total"]
[null,"Nome 1","Gerente","Gerente","Gerente","Gerente","Gerente","Gerente","Gerente","Gerente","Gerente",null,{"$f":"COUNTIF(Quinta_feira[[#This Row],[07h]:[15h]],\"*\")","v":9}]
[null,"Nome 2",null,"Caixa","Caixa","Caixa","Caixa",{"$nulls":5},{"$f":"COUNTIF(Quinta_feira[[#This Row],[07h]:[15h]],\"*\")","v":4}]
[null,"Nome 3",null,"Recepção","Recepção","Recepção","Recepção","Recepção","Recepção","Recepção",null,null,{"$f":"COUNTIF(Quinta_feira[[#This Row],[07h]:[15h]],\"*\")","v":7}]
[null,"Nome 4",null,"Recepção","Recepção","Recepção","Recepção","Recepção","Recepção","Recepção",null,null,{"$f":"COUNTIF(Quinta_feira[[#This Row],[07h]:[15h]],\"*\")","v":7}]
[null,"Nome 5",{"$nulls":9},"Licença médica",{"$f":"COUNTIF(Quinta_feira[[#This Row],[07h]:[15h]],\"*\")","v":0}]

{"sheet":"Sexta-feira","index":4,"n_rows":10,"n_cols":13,"rows_kept":10,"merged":[[1,1,1,4],[1,8,1,9],[1,10,1,12],[2,1,2,4],[2,8,2,9],[2,10,2,12]]}
[]
[null,"AGENDA DE TURNOS",{"$nulls":6},"Para a semana de: ",null,"Data"]
[null,"Sexta-feira",{"$nulls":6},"Nome do departamento: ",null,"Nome"]
[]
[null,"Funcionário","07h","08h","09h","10h","11h","12h","13h","14h","15h","Licença médica?","Total"]
[null,"Nome 1","Gerente","Gerente","Gerente","Gerente","Gerente","Gerente","Gerente","Gerente","Gerente",null,9]
[null,"Nome 2",null,"Caixa","Caixa","Caixa","Caixa",{"$nulls":5},4]
[null,"Nome 3",null,"Recepção","Recepção","Recepção","Recepção","Recepção","Recepção","Recepção",null,null,7]
[null,"Nome 4",null,"Recepção","Recepção","Recepção","Recepção","Recepção","Recepção","Recepção",null,null,7]
[null,"Nome 5",{"$nulls":9},"Licença médica",0]

{"sheet":"Sábado","index":5,"n_rows":10,"n_cols":13,"rows_kept":10,"merged":[[1,1,1,4],[1,8,1,9],[1,10,1,12],[2,1,2,4],[2,8,2,9],[2,10,2,12]]}
[]
[null,"AGENDA DE TURNOS",{"$nulls":6},"Para a semana de: ",null,"Data"]
[null,"Sábado",{"$nulls":6},"Nome do departamento: ",null,"Nome"]
[]
[null,"Funcionário","07h","08h","09h","10h","11h","12h","13h","14h","15h","Licença médica?","Total"]
[null,"Nome 1","Gerente","Gerente","Gerente","Gerente","Gerente","Gerente","Gerente","Gerente","Gerente",null,{"$f":"COUNTIF(Sábado[[#This Row],[07h]:[15h]],\"*\")","v":9}]
[null,"Nome 2",null,"Caixa","Caixa","Caixa","Caixa",{"$nulls":5},{"$f":"COUNTIF(Sábado[[#This Row],[07h]:[15h]],\"*\")","v":4}]
[null,"Nome 3",null,"Recepção","Recepção","Recepção","Recepção","Recepção","Recepção","Recepção",null,null,{"$f":"COUNTIF(Sábado[[#This Row],[07h]:[15h]],\"*\")","v":7}]
[null,"Nome 4",null,"Recepção","Recepção","Recepção","Recepção","Recepção","Recepção","Recepção",null,null,{"$f":"COUNTIF(Sábado[[#This Row],[07h]:[15h]],\"*\")","v":7}]
[null,"Nome 5",{"$nulls":9},"Licença médica",{"$f":"COUNTIF(Sábado[[#This Row],[07h]:[15h]],\"*\")","v":0}]

{"sheet":"Domingo","index":6,"n_rows":10,"n_cols":13,"rows_kept":10,"merged":[[1,1,1,4],[1,8,1,9],[1,10,1,12],[2,1,2,4],[2,8,2,9],[2,10,2,12]]}
[]
[null,"AGENDA DE TURNOS",{"$nulls":6},"Para a semana de: ",null,"Data"]
[null,"Domingo",{"$nulls":6},"Nome do departamento: ",null,"Nome"]
[]
[null,"Funcionário","07h","08h","09h","10h","11h","12h","13h","14h","15h","Licença médica?","Total"]
[null,"Nome 1","Gerente","Gerente","Gerente","Gerente","Gerente","Gerente","Gerente","Gerente","Gerente",null,{"$f":"COUNTIF(Domingo[[#This Row],[07h]:[15h]],\"*\")","v":9}]
[null,"Nome 2",null,"Caixa","Caixa","Caixa","Caixa",{"$nulls":5},{"$f":"COUNTIF(Domingo[[#This Row],[07h]:[15h]],\"*\")","v":4}]
[null,"Nome 3",null,"Recepção","Recepção","Recepção","Recepção","Recepção","Recepção","Recepção",null,null,{"$f":"COUNTIF(Domingo[[#This Row],[07h]:[15h]],\"*\")","v":7}]
[null,"Nome 4",null,"Recepção","Recepção","Recepção","Recepção","Recepção","Recepção","Recepção",null,null,{"$f":"COUNTIF(Domingo[[#This Row],[07h]:[15h]],\"*\")","v":7}]
[null,"Nome 5",{"$nulls":9},"Licença médica",{"$f":"COUNTIF(Domingo[[#This Row],[07h]:[15h]],\"*\")","v":0}]